[Event "Queens Festival Final Team 2022"]
[Site "Tornelo"]
[Date "2022.06.26"]
[Round "1.1"]
[White "Krush, Irina"]
[Black "Subramanian, Anusha"]
[Result "1-0"]
[ECO "D10"]
[WhiteElo "2430"]
[BlackElo "1671"]
[Annotator "TA"]
[PlyCount "87"]
[EventDate "2022.06.24"]
[EventType "team-tourn"]
[EventCountry "NET"]
[SourceTitle "playchess.com"]
[Source "ChessBase"]
[SourceQuality "1"]
[WhiteTeam "United States"]
[BlackTeam "England"]
[WhiteTeamCountry "USA"]
[BlackTeamCountry "ENG"]
[TimeControl "180+2"]

{[%evp 9,86,22,19,25,54,54,201,52,56,60,54,57,46,42,44,45,38,45,39,45,51,22,33,6,39,30,50,37,92,35,47,41,58,48,58,62,138,55,483,24,60,60,65,58,89,99,121,121,121,65,117,110,317,317,317,312,351,56,1560,1452,1344,1309,29984,29985,29985,29986,29986,29987,29993,29992,29992,29993,29993,29994,29997,29998,29998,29999,29999]} 1. d4 {[%emt 0:01:38]} d5 {[%emt 0:00:04]} 2. c4 {[%emt 0:00:02]} c6 {[%emt 0:00:02]} 3. cxd5 {[%emt 0:00:03]} cxd5 {[%emt 0:00:01]} 4. Bf4 {[%emt 0:00:01]} Nf6 {[%emt 0:00:05]} 5. Nc3 {[%emt 0:00:04]} a6 {[%emt 0:00:02]} 6. e3 {[%emt 0:00:01] D10: Slav Defence: 3 cxd5 (without early Nf3) and 3 Nc3.} Bf5 {[%emt 0:00:06]} 7. Qb3 {[%emt 0:00:03]} Qd7 {[%emt 0:00:09]} (7... b5 $14) 8. Nf3 {[%emt 0:00:02]} ({White should try} 8. Bxb8 $18 {And now Bg3 would win.} Rxb8 9. Bxa6) 8... Nc6 $14 {[%emt 0:00:02]} 9. Na4 {[%emt 0:00:13]} Na5 $1 {[%emt 0:00:51]} 10. Qd1 {[%emt 0:00:02] Black must now prevent Nb6.} Qd8 {[%emt 0:00:16] [#] Prevents Nb6.} 11. Be2 $146 {[%emt 0:00:14]} ({Predecessor:} 11. Bd3 Bxd3 12. Qxd3 e6 13. O-O Bd6 14. Bxd6 Qxd6 15. Nc5 Qb6 16. Ne5 Nc6 17. f4 {1-0 (31) Skytte,T (1991)-Matoussi,A (1627) Tromsoe 2014}) 11... e6 {[%emt 0:00:02]} 12. O-O {[%emt 0:00:02]} Bd6 {[%emt 0:00:02]} 13. Bxd6 {[%emt 0:00:05]} Qxd6 {[%emt 0:00:00]} 14. Rc1 {[%emt 0:00:01]} O-O {[%emt 0:00:04]} 15. a3 {[%emt 0:00:01]} Nd7 {[%emt 0:00:05][%cal Oa5c4]} 16. b4 {[%emt 0:00:02]} Nc6 {[%emt 0:00:10]} (16... Nc4 $5) 17. Nc5 {[%emt 0:00:01]} Rab8 {[%emt 0:00:13]} 18. Qb3 {[%emt 0:00:02]} Rfc8 {[%emt 0:00:31] [#]} (18... Bg4 $14) 19. Rc3 {[%emt 0:00:05]} (19. Nxb7 $1 $16 Rxb7 20. Bxa6) 19... Ne7 {[%emt 0:00:10]} 20. Rfc1 {[%emt 0:00:03]} h6 {[%emt 0:00:20]} 21. h3 {[%emt 0:00:01]} Bg6 {[%emt 0:00:04]} 22. a4 {[%emt 0:00:04]} b5 {[%emt 0:00:04]} (22... f6 $14) 23. a5 {[%emt 0:00:05]} (23. Nxd7 $16 Qxd7 24. axb5 axb5 25. Ne5 Rxc3 26. Qxc3 (26. Nxd7 Rxb3 27. Nxb8 Rxb4 $15) (26. Rxc3 Qa7 $16)) 23... Bh5 $2 {[%emt 0:00:13][%mdl 8192]} (23... Be4 $14) 24. Qc2 $2 {[%emt 0:00:08]} (24. Nxd7 $18 Bxf3 25. Nxb8 (25. gxf3 Qxd7 26. Rc5 Nf5 $11) 25... Rxc3 26. Qxc3 (26. Rxc3 Bxe2 27. Qc2 Bc4 $15) 26... Bxe2 {[#]} 27. Nxa6 $1 {[%mdl 512]}) 24... Bg6 {[%emt 0:00:03]} 25. Bd3 {[%emt 0:00:01]} Bxd3 {[%emt 0:00:02]} 26. Qxd3 {[%emt 0:00:01]} Nf5 {[%emt 0:00:02]} 27. Qc2 {[%emt 0:00:09][%cal Oc5b7] Hoping for Nb7!} Ne7 {[%emt 0:00:02]} 28. Nxd7 {[%emt 0:00:03][%cal Rc3c8] White is much more active.} Qxd7 {[%emt 0:00:03]} 29. Rc7 {[%emt 0:00:03]} (29. Ne5 $16 Qe8 30. Nc6 Nxc6 31. Rxc6 Rxc6 32. Qxc6) 29... Rxc7 {[%emt 0:00:02]} (29... Qe8 $14 30. Rc5 f6) 30. Qxc7 $16 {[%emt 0:00:01]} Qe8 {[%emt 0:00:04]} (30... Rb7 $16 {is a better defense.} 31. Qc5 Qd8) 31. Qa7 $18 {[%emt 0:00:06] Strongly threatening Rc7.} Ra8 {[%emt 0:00:03]} 32. Qb7 {[%emt 0:00:10]} Nf5 {[%emt 0:00:02]} 33. Ne5 $2 {[%emt 0:00:03]} ({White has to play} 33. Rc6 $18) 33... Qb8 $2 {[%emt 0:00:02][%mdl 8192]} (33... Nd6 $14 34. Qc6 Nc4) 34. Qxf7+ {[%emt 0:00:03]} Kh8 {[%emt 0:00:02]} 35. Qxe6 {[%emt 0:00:03]} Qf8 {[%emt 0:00:03]} 36. Ng6+ {[%emt 0:00:04] White mates.} Kh7 {[%emt 0:00:03]} 37. Nxf8+ {[%emt 0:00:01]} Rxf8 {[%emt 0:00:00]} 38. Rc7 {[%emt 0:00:02]} Kh8 {[%emt 0:00:03]} 39. Qxd5 {[%emt 0:00:02]} Kh7 {[%emt 0:00:04]} 40. Qe5 {[%emt 0:00:01]} Kg8 {[%emt 0:00:03]} 41. g4 {[%emt 0:00:02]} Ne7 {[%emt 0:00:02]} 42. Qxe7 {[%emt 0:00:02][%csl Gc7][%cal Re7g7]} Rf7 {[%emt 0:00:01]} 43. Qxf7+ {[%emt 0:00:01]} Kh8 {[%emt 0:00:01]} 44. Qxg7# {[%emt 0:00:01] Weighted Error Value: White=0.53/Black=0.57} 1-0

[Event "Queens Festival Final Team 2022"]
[Site "Tornelo"]
[Date "2022.06.26"]
[Round "1.1"]
[White "Grigoryan, Meri"]
[Black "Bian, Erin"]
[Result "0-1"]
[ECO "E20"]
[WhiteElo "1993"]
[BlackElo "1811"]
[Annotator "NA RC"]
[PlyCount "144"]
[EventDate "2022.06.24"]
[EventType "team-tourn"]
[EventCountry "NET"]
[SourceTitle "playchess.com"]
[Source "ChessBase"]
[SourceQuality "1"]
[WhiteTeam "England"]
[BlackTeam "United States"]
[WhiteTeamCountry "ENG"]
[BlackTeamCountry "USA"]
[TimeControl "180+2"]

1. d4 {[%emt 0:00:02]} Nf6 {[%emt 0:00:06]} 2. c4 {[%emt 0:00:04]} e6 {[%emt 0:00:03]} 3. Nc3 {[%emt 0:00:02]} Bb4 {[%emt 0:00:03]} 4. Bd2 {[%emt 0:00:01]} b6 {[%emt 0:00:10]} 5. f3 {[%emt 0:00:05]} c5 {[%emt 0:00:04]} 6. a3 {[%emt 0:00:09]} Bxc3 {[%emt 0:00:02]} 7. Bxc3 {[%emt 0:00:02]} cxd4 {[%emt 0:00:13]} 8. Qxd4 {[%emt 0:00:08]} Bb7 {[%emt 0:00:05]} 9. e4 {[%emt 0:00:05]} O-O {[%emt 0:00:11]} 10. Bd3 {[%emt 0:00:21]} d5 {[%emt 0:00:18]} 11. cxd5 {[%emt 0:00:15]} exd5 {[%emt 0:00:13]} 12. exd5 {[%emt 0:00:26]} Qxd5 {[%emt 0:00:14]} 13. O-O-O {[%emt 0:00:25]} Qg5+ {[%emt 0:00:28]} 14. Kb1 {[%emt 0:00:18]} Nc6 {[%emt 0:00:14]} 15. Qf2 {[%emt 0:00:12]} Nd5 {[%emt 0:00:13]} 16. Bd2 {[%emt 0:00:07]} Qf6 {[%emt 0:00:06]} 17. h4 {[%emt 0:00:07]} Nf4 {[%emt 0:00:14]} 18. Bc2 {[%emt 0:00:09]} Rad8 {[%emt 0:00:03]} 19. Bc3 {[%emt 0:00:11]} Rxd1+ {[%emt 0:00:03]} 20. Bxd1 {[%emt 0:00:01]} Qd6 {[%emt 0:00:02]} 21. Bc2 {[%emt 0:00:03]} Rd8 {[%emt 0:00:07]} 22. Nh3 {[%emt 0:00:03]} Nxh3 {[%emt 0:00:03]} 23. Rxh3 {[%emt 0:00:02]} Nd4 {[%emt 0:00:04]} 24. Rg3 {[%emt 0:00:10]} f6 {[%emt 0:00:05]} 25. Bxd4 {[%emt 0:00:13]} Qxd4 {[%emt 0:00:02]} 26. Qe1 {[%emt 0:00:04]} Qd6 {[%emt 0:00:05]} 27. Rg4 {[%emt 0:00:02]} Bc6 {[%emt 0:00:05]} 28. h5 {[%emt 0:00:01]} Re8 {[%emt 0:00:02]} 29. Qg3 {[%emt 0:00:03]} Qxg3 {[%emt 0:00:03]} 30. Rxg3 {[%emt 0:00:00]} h6 {[%emt 0:00:02]} 31. Bg6 {[%emt 0:00:03]} Re1+ {[%emt 0:00:02]} 32. Ka2 {[%emt 0:00:02]} Bd5+ {[%emt 0:00:01]} 33. b3 {[%emt 0:00:00]} Re2+ {[%emt 0:00:02]} 34. Kb1 {[%emt 0:00:01]} Bxb3 {[%emt 0:00:01]} 35. f4 {[%emt 0:00:04]} Bf7 {[%emt 0:00:06]} 36. Rc3 {[%emt 0:00:03]} Bxg6+ {[%emt 0:00:03]} 37. hxg6 {[%emt 0:00:01]} Kf8 {[%emt 0:00:03]} 38. Rc7 {[%emt 0:00:01]} Rxg2 {[%emt 0:00:07]} 39. Rxa7 {[%emt 0:00:03]} Rxg6 {[%emt 0:00:02]} 40. Rb7 {[%emt 0:00:01]} Rg3 {[%emt 0:00:03]} 41. a4 {[%emt 0:00:04]} Ra3 {[%emt 0:00:02]} 42. Rxb6 {[%emt 0:00:03]} Rxa4 {[%emt 0:00:02]} 43. Rb8+ {[%emt 0:00:02]} Kf7 {[%emt 0:00:01]} 44. f5 {[%emt 0:00:01]} Re4 {[%emt 0:00:04]} 45. Rb7+ {[%emt 0:00:02]} Re7 {[%emt 0:00:01]} 46. Rb5 {[%emt 0:00:01]} g6 {[%emt 0:00:02]} 47. fxg6+ {[%emt 0:00:02]} Kxg6 {[%emt 0:00:01]} 48. Kc2 {[%emt 0:00:00]} Rd7 {[%emt 0:00:02]} 49. Kc3 {[%emt 0:00:02]} h5 {[%emt 0:00:01]} 50. Rb8 {[%emt 0:00:02]} f5 {[%emt 0:00:01]} 51. Rg8+ {[%emt 0:00:01]} Rg7 {[%emt 0:00:02]} 52. Rc8 {[%emt 0:00:02]} Kg5 {[%emt 0:00:02]} 53. Kd3 {[%emt 0:00:01]} Re7 {[%emt 0:00:03]} 54. Rg8+ {[%emt 0:00:05]} Kh4 {[%emt 0:00:05]} 55. Rf8 {[%emt 0:00:01]} Kg4 {[%emt 0:00:03]} 56. Rg8+ {[%emt 0:00:02]} Kf4 {[%emt 0:00:01]} 57. Rh8 {[%emt 0:00:01]} Kg5 {[%emt 0:00:01]} 58. Rg8+ {[%emt 0:00:01]} Kh6 {[%emt 0:00:04]} 59. Rf8 {[%emt 0:00:01]} Kg6 {[%emt 0:00:01]} 60. Rg8+ {[%emt 0:00:02]} Rg7 {[%emt 0:00:01]} 61. Rb8 {[%emt 0:00:03]} Kg5 {[%emt 0:00:02]} 62. Ke3 {[%emt 0:00:02]} h4 {[%emt 0:00:03]} 63. Kf3 {[%emt 0:00:01]} Kf6 {[%emt 0:00:03]} 64. Rf8+ {[%emt 0:00:02]} Ke7 {[%emt 0:00:01]} 65. Rh8 {[%emt 0:00:01]} Rg4 {[%emt 0:00:02]} 66. Rh6 {[%emt 0:00:03]} Kf7 {[%emt 0:00:03]} 67. Kf2 {[%emt 0:00:04]} Kg7 {[%emt 0:00:01]} 68. Rb6 {[%emt 0:00:03]} h3 {[%emt 0:00:01]} 69. Kf3 {[%emt 0:00:03]} h2 {[%emt 0:00:03]} 70. Rb1 {[%emt 0:00:03]} Rg1 {[%emt 0:00:01]} 71. Rb7+ {[%emt 0:00:04]} Kg6 {[%emt 0:00:02]} 72. Rb6+ {[%emt 0:00:06]} Kg5 {[%emt 0:00:01]} 0-1

[Event "Queens Festival Final Team 2022"]
[Site "Tornelo"]
[Date "2022.06.26"]
[Round "1.1"]
[White "Yellamraju, Aparna"]
[Black "Posadas, Rayelynn"]
[Result "1-0"]
[ECO "A58"]
[WhiteElo "1720"]
[BlackElo "1648"]
[Annotator "NA RC"]
[PlyCount "81"]
[EventDate "2022.06.24"]
[EventType "team-tourn"]
[EventCountry "NET"]
[SourceTitle "playchess.com"]
[Source "ChessBase"]
[SourceQuality "1"]
[WhiteTeam "United States"]
[BlackTeam "England"]
[WhiteTeamCountry "USA"]
[BlackTeamCountry "ENG"]
[TimeControl "180+2"]

1. d4 {[%emt 0:00:02]} c5 {[%emt 0:00:07]} 2. d5 {[%emt 0:00:03]} Nf6 {[%emt 0:00:01]} 3. c4 {[%emt 0:00:02]} b5 {[%emt 0:00:02]} 4. cxb5 {[%emt 0:00:02]} a6 {[%emt 0:00:01]} 5. bxa6 {[%emt 0:00:02]} g6 {[%emt 0:00:14]} 6. Nc3 {[%emt 0:00:04]} Bg7 {[%emt 0:00:02]} 7. e4 {[%emt 0:00:10]} O-O {[%emt 0:00:03]} 8. Nf3 {[%emt 0:00:04]} Qa5 {[%emt 0:00:01]} 9. Bd3 {[%emt 0:00:20]} Bxa6 {[%emt 0:00:04]} 10. Bxa6 {[%emt 0:00:02]} Qxa6 {[%emt 0:00:02]} 11. Qe2 {[%emt 0:00:04]} Qxe2+ {[%emt 0:00:07]} 12. Kxe2 {[%emt 0:00:02]} Na6 {[%emt 0:00:01]} 13. a3 {[%emt 0:00:03]} c4 {[%emt 0:00:10]} 14. Be3 {[%emt 0:00:11]} Rfb8 {[%emt 0:00:04]} 15. Rab1 {[%emt 0:00:02]} Rb7 {[%emt 0:00:11]} 16. Nd2 {[%emt 0:00:04]} Rc8 {[%emt 0:00:05]} 17. Rhc1 {[%emt 0:00:03]} Ng4 {[%emt 0:00:05]} 18. h3 {[%emt 0:00:07]} Nxe3 {[%emt 0:00:02]} 19. Kxe3 {[%emt 0:00:04]} Nc5 {[%emt 0:00:14]} 20. Ne2 {[%emt 0:00:12]} Na4 {[%emt 0:01:15]} 21. Rxc4 {[%emt 0:00:19]} Rxc4 {[%emt 0:00:08]} 22. Nxc4 {[%emt 0:00:02]} Rb3+ {[%emt 0:00:06]} 23. Kd2 {[%emt 0:00:08]} Nc5 {[%emt 0:00:25]} 24. f3 {[%emt 0:00:21]} d6 {[%emt 0:00:02]} 25. Kc2 {[%emt 0:00:04]} f5 {[%emt 0:00:09]} 26. exf5 {[%emt 0:00:19]} gxf5 {[%emt 0:00:02]} 27. Nc1 {[%emt 0:00:13]} Rb5 {[%emt 0:00:04]} 28. Ne2 {[%emt 0:00:06]} Kf7 {[%emt 0:00:02]} 29. b4 {[%emt 0:00:03]} Na4 {[%emt 0:00:02]} 30. Rd1 {[%emt 0:00:02]} h6 {[%emt 0:00:02]} 31. Nd4 {[%emt 0:00:03]} Rb7 {[%emt 0:00:01]} 32. Nxf5 {[%emt 0:00:03]} Rc7 {[%emt 0:00:03]} 33. Kb3 {[%emt 0:00:04]} Nc3 {[%emt 0:00:06]} 34. Nxh6+ {[%emt 0:00:06]} Bxh6 {[%emt 0:00:03]} 35. Kxc3 {[%emt 0:00:02]} Bg7+ {[%emt 0:00:01]} 36. Kb3 {[%emt 0:00:01]} Kf6 {[%emt 0:00:00]} 37. Re1 {[%emt 0:00:03]} Kf7 {[%emt 0:00:03]} 38. Re6 {[%emt 0:00:03]} Bf6 {[%emt 0:00:01]} 39. a4 {[%emt 0:00:02]} Be5 {[%emt 0:00:02]} 40. Nxe5+ {[%emt 0:00:03]} dxe5 {[%emt 0:00:00]} 41. Rxe5 {[%emt 0:00:01]} 1-0

[Event "Queens Festival Final Team 2022"]
[Site "Tornelo"]
[Date "2022.06.26"]
[Round "1.2"]
[White "Alboredo, Julia"]
[Black "Maksimovic, Suzana"]
[Result "1-0"]
[ECO "B28"]
[WhiteElo "2252"]
[BlackElo "2145"]
[Annotator "TA"]
[PlyCount "51"]
[EventDate "2022.06.24"]
[EventType "team-tourn"]
[EventCountry "NET"]
[SourceTitle "playchess.com"]
[Source "ChessBase"]
[SourceQuality "1"]
[WhiteTeam "Brazil"]
[BlackTeam "Serbia"]
[WhiteTeamCountry "BRA"]
[BlackTeamCountry "SRB"]
[TimeControl "180+2"]

{[%evp 9,51,32,35,33,41,42,31,24,27,14,23,22,53,32,52,35,85,27,143,130,145,129,230,203,472,462,495,486,964,977,975,564,627,618,708,705,1070,1068,1059,1059,1040,1031,993,958]} 1. e4 {[%emt 0:00:02]} c5 {[%emt 0:00:05]} 2. Nf3 {[%emt 0:00:02]} a6 {[%emt 0:00:01]} 3. c3 {[%emt 0:00:04]} d5 {[%emt 0:00:03]} 4. exd5 {[%emt 0:00:00]} Qxd5 {[%emt 0:00:02]} 5. d4 {[%emt 0:00:01]} Bg4 {[%emt 0:00:02]} 6. Be2 {[%emt 0:00:01] B28: Sicilian: 2 Nf3 a6 (O'Kelly Variation).} e6 {[%emt 0:00:10]} 7. O-O {[%emt 0:00:03]} Nf6 {[%emt 0:00:04]} 8. Be3 {[%emt 0:00:02] White is slightly better.} cxd4 {[%emt 0:00:04]} 9. cxd4 {[%emt 0:00:00]} Nc6 {[%emt 0:00:02]} 10. Nc3 {[%emt 0:00:02]} Qd6 {[%emt 0:00:02]} 11. h3 {[%emt 0:00:05]} Bf5 {[%emt 0:00:05] [#]} 12. Qb3 $146 {[%emt 0:00:08]} (12. Ne5 $5) ({Predecessor:} 12. a3 Be7 13. Rc1 O-O 14. Bc4 Rfd8 15. Qe2 Ne4 16. Rfd1 Nxc3 17. Rxc3 Be4 18. g3 {0-1 (44) Al Mery,O-Hamela,F Beirut 2000}) 12... Rb8 {[%emt 0:00:14] [#]} (12... Qb4 $14) 13. Rfd1 {[%emt 0:00:12]} ({White should try} 13. Nh4 $1 $16) 13... Nd5 {[%emt 0:00:13]} (13... Qb4 $1 $11 {remains equal.}) 14. Nxd5 $16 {[%emt 0:00:13]} exd5 {[%emt 0:00:04]} 15. g3 $36 {[%emt 0:00:13][%mdl 2048] White is really pushing.} Bxh3 {[%emt 0:00:57]} (15... Qd7 $16) 16. Bf4 {[%emt 0:00:04][%mdl 64] Deflection} Qd7 {[%emt 0:00:02]} (16... Qb4) 17. Bxb8 $18 {[%emt 0:00:02] [#] Strongly threatening Ne5. White is clearly winning.} Nxb8 {[%emt 0:00:01]} 18. Ne5 {[%emt 0:00:06]} Qc7 {[%emt 0:00:20]} (18... Qd6 $142 19. Rac1 Be7) 19. Rac1 {[%emt 0:00:21]} Nc6 {[%emt 0:00:02]} 20. Qxd5 {[%emt 0:00:06]} Be6 {[%emt 0:00:09]} 21. Qe4 {[%emt 0:00:07][%cal Re5c6]} Bd6 {[%emt 0:00:45]} 22. Nxc6 {[%emt 0:00:05]} bxc6 {[%emt 0:00:02]} 23. d5 {[%emt 0:00:15]} cxd5 {[%emt 0:00:03]} 24. Rxc7 {[%emt 0:00:02]} dxe4 {[%emt 0:00:03]} 25. Rxd6 {[%emt 0:00:02]} O-O {[%emt 0:00:04]} 26. Rxa6 {[%emt 0:00:03] Weighted Error Value: White=0.31/Black=0.55} 1-0

[Event "Queens Festival Final Team 2022"]
[Site "Tornelo"]
[Date "2022.06.26"]
[Round "1.2"]
[White "Vujcic, Milena"]
[Black "Medeiros, Thauane Ferreira"]
[Result "1-0"]
[ECO "C67"]
[WhiteElo "1987"]
[BlackElo "1884"]
[Annotator "NA RC"]
[PlyCount "149"]
[EventDate "2022.06.24"]
[EventType "team-tourn"]
[EventCountry "NET"]
[SourceTitle "playchess.com"]
[Source "ChessBase"]
[SourceQuality "1"]
[WhiteTeam "Serbia"]
[BlackTeam "Brazil"]
[WhiteTeamCountry "SRB"]
[BlackTeamCountry "BRA"]
[TimeControl "180+2"]

1. e4 {[%emt 0:00:02]} e5 {[%emt 0:00:04]} 2. Nf3 {[%emt 0:00:04]} Nc6 {[%emt 0:00:03]} 3. Bb5 {[%emt 0:00:02]} Nf6 {[%emt 0:00:02]} 4. O-O {[%emt 0:00:06]} Nxe4 {[%emt 0:00:02]} 5. Re1 {[%emt 0:00:06]} Nd6 {[%emt 0:00:02]} 6. Bxc6 {[%emt 0:00:17]} dxc6 {[%emt 0:00:00]} 7. Nxe5 {[%emt 0:00:05]} Be7 {[%emt 0:00:01]} 8. d4 {[%emt 0:00:04]} O-O {[%emt 0:00:03]} 9. b3 {[%emt 0:00:16]} Bf5 {[%emt 0:00:19]} 10. Bb2 {[%emt 0:00:03]} Bf6 {[%emt 0:00:03]} 11. c4 {[%emt 0:00:07]} Re8 {[%emt 0:00:41]} 12. Nd2 {[%emt 0:00:03]} Nc8 {[%emt 0:01:09]} 13. Qf3 {[%emt 0:00:04]} Bg6 {[%emt 0:00:09]} 14. Rad1 {[%emt 0:00:02]} Nb6 {[%emt 0:00:13]} 15. Ne4 {[%emt 0:00:03]} Bxe5 {[%emt 0:00:11]} 16. dxe5 {[%emt 0:00:03]} Qe7 {[%emt 0:00:01]} 17. Ng3 {[%emt 0:00:07]} Rad8 {[%emt 0:00:02]} 18. Nf5 {[%emt 0:00:12]} Qe6 {[%emt 0:00:02]} 19. Nd4 {[%emt 0:00:19]} Qe7 {[%emt 0:00:06]} 20. Qc3 {[%emt 0:00:14]} c5 {[%emt 0:00:15]} 21. Nb5 {[%emt 0:00:11]} a6 {[%emt 0:00:02]} 22. Na3 {[%emt 0:00:06]} Qe6 {[%emt 0:00:05]} 23. Nc2 {[%emt 0:00:07]} Nd7 {[%emt 0:00:03]} 24. f4 {[%emt 0:00:04]} Bf5 {[%emt 0:00:02]} 25. Ne3 {[%emt 0:00:02]} Nf8 {[%emt 0:00:05]} 26. Nxf5 {[%emt 0:00:18]} Qxf5 {[%emt 0:00:00]} 27. Rxd8 {[%emt 0:00:20]} Rxd8 {[%emt 0:00:00]} 28. e6 {[%emt 0:00:02]} Qg6 {[%emt 0:00:01]} 29. e7 {[%emt 0:00:04]} Re8 {[%emt 0:00:02]} 30. exf8=Q+ {[%emt 0:00:02]} Rxf8 {[%emt 0:00:00]} 31. Qe5 {[%emt 0:00:03]} b6 {[%emt 0:00:03]} 32. f5 {[%emt 0:00:03]} Qg5 {[%emt 0:00:03]} 33. h4 {[%emt 0:00:04]} Qg4 {[%emt 0:00:02]} 34. Re4 {[%emt 0:00:02]} Qd1+ {[%emt 0:00:03]} 35. Kh2 {[%emt 0:00:03]} f6 {[%emt 0:00:01]} 36. Qe6+ {[%emt 0:00:03]} Kh8 {[%emt 0:00:01]} 37. Re2 {[%emt 0:00:02]} h6 {[%emt 0:00:02]} 38. Qe3 {[%emt 0:00:03]} Qd6+ {[%emt 0:00:03]} 39. Kg1 {[%emt 0:00:03]} Rd8 {[%emt 0:00:02]} 40. Qe6 {[%emt 0:00:04]} Qd1+ {[%emt 0:00:01]} 41. Kh2 {[%emt 0:00:02]} Kh7 {[%emt 0:00:03]} 42. Qe4 {[%emt 0:00:03]} Qd6+ {[%emt 0:00:04]} 43. Kh3 {[%emt 0:00:03]} Qd1 {[%emt 0:00:02]} 44. Qg4 {[%emt 0:00:03]} Rd3+ {[%emt 0:00:02]} 45. Kh2 {[%emt 0:00:02]} Rd8 {[%emt 0:00:05]} 46. Qg6+ {[%emt 0:00:02]} Kg8 {[%emt 0:00:02]} 47. Re8+ {[%emt 0:00:01]} Rxe8 {[%emt 0:00:01]} 48. Qxe8+ {[%emt 0:00:02]} Kh7 {[%emt 0:00:00]} 49. Qg6+ {[%emt 0:00:02]} Kh8 {[%emt 0:00:02]} 50. Bxf6 {[%emt 0:00:03]} gxf6 {[%emt 0:00:00]} 51. Qxf6+ {[%emt 0:00:03]} Kh7 {[%emt 0:00:00]} 52. Qg6+ {[%emt 0:00:02]} Kh8 {[%emt 0:00:01]} 53. f6 {[%emt 0:00:02]} Qd6+ {[%emt 0:00:02]} 54. Qg3 {[%emt 0:00:02]} Qxf6 {[%emt 0:00:03]} 55. Kh3 {[%emt 0:00:01]} Qe7 {[%emt 0:00:04]} 56. Qf4 {[%emt 0:00:04]} Qd7+ {[%emt 0:00:03]} 57. Kh2 {[%emt 0:00:04]} Kh7 {[%emt 0:00:03]} 58. g4 {[%emt 0:00:03]} c6 {[%emt 0:00:04]} 59. g5 {[%emt 0:00:03]} hxg5 {[%emt 0:00:02]} 60. hxg5 {[%emt 0:00:04]} b5 {[%emt 0:00:04]} 61. Kg3 {[%emt 0:00:03]} Qd3+ {[%emt 0:00:04]} 62. Kg4 {[%emt 0:00:03]} Qe2+ {[%emt 0:00:02]} 63. Kh4 {[%emt 0:00:01]} Qe1+ {[%emt 0:00:02]} 64. Kg4 {[%emt 0:00:02]} Qg1+ {[%emt 0:00:02]} 65. Qg3 {[%emt 0:00:02]} Qd4+ {[%emt 0:00:02]} 66. Kf5 {[%emt 0:00:02]} Qd7+ {[%emt 0:00:02]} 67. Kf4 {[%emt 0:00:04]} bxc4 {[%emt 0:00:02]} 68. bxc4 {[%emt 0:00:02]} Qd4+ {[%emt 0:00:01]} 69. Kf5 {[%emt 0:00:02]} Qxc4 {[%emt 0:00:01]} 70. g6+ {[%emt 0:00:02]} Kg7 {[%emt 0:00:02]} 71. Qc7+ {[%emt 0:00:02]} Kg8 {[%emt 0:00:02]} 72. Qd8+ {[%emt 0:00:02]} Kg7 {[%emt 0:00:02]} 73. Qe7+ {[%emt 0:00:03]} Kg8 {[%emt 0:00:04]} 74. Qh7+ {[%emt 0:00:02]} Kf8 {[%emt 0:00:02]} 75. g7+ {[%emt 0:00:01]} 1-0

[Event "Queens Festival Final Team 2022"]
[Site "Tornelo"]
[Date "2022.06.26"]
[Round "1.2"]
[White "Bucci, Andrea Vidigal"]
[Black "Vukosavljevic, Tatjana"]
[Result "1-0"]
[ECO "C42"]
[WhiteElo "1769"]
[BlackElo "1758"]
[Annotator "NA RC"]
[PlyCount "77"]
[EventDate "2022.06.24"]
[EventType "team-tourn"]
[EventCountry "NET"]
[SourceTitle "playchess.com"]
[Source "ChessBase"]
[SourceQuality "1"]
[WhiteTeam "Brazil"]
[BlackTeam "Serbia"]
[WhiteTeamCountry "BRA"]
[BlackTeamCountry "SRB"]
[TimeControl "180+2"]

1. e4 {[%emt 0:00:02]} e5 {[%emt 0:00:05]} 2. Nf3 {[%emt 0:00:02]} Nf6 {[%emt 0:00:01]} 3. d3 {[%emt 0:00:02]} d6 {[%emt 0:00:07]} 4. Be2 {[%emt 0:00:02]} Be7 {[%emt 0:00:01]} 5. c3 {[%emt 0:00:01]} O-O {[%emt 0:00:02]} 6. O-O {[%emt 0:00:01]} c6 {[%emt 0:00:02]} 7. Nbd2 {[%emt 0:00:00]} Nbd7 {[%emt 0:00:02]} 8. Re1 {[%emt 0:00:02]} Qc7 {[%emt 0:00:02]} 9. Nf1 {[%emt 0:00:02]} Re8 {[%emt 0:00:10]} 10. Ng3 {[%emt 0:00:02]} d5 {[%emt 0:00:07]} 11. Bg5 {[%emt 0:00:15]} h6 {[%emt 0:00:11]} 12. Be3 {[%emt 0:00:07]} dxe4 {[%emt 0:00:07]} 13. dxe4 {[%emt 0:00:03]} Nc5 {[%emt 0:00:04]} 14. Qc2 {[%emt 0:00:09]} Ng4 {[%emt 0:00:21]} 15. Bc1 {[%emt 0:00:10]} Be6 {[%emt 0:00:23]} 16. b4 {[%emt 0:00:04]} Nd7 {[%emt 0:00:02]} 17. Bb2 {[%emt 0:00:07]} b5 {[%emt 0:00:08]} 18. Rad1 {[%emt 0:00:02]} Rad8 {[%emt 0:00:04]} 19. a4 {[%emt 0:00:03]} a6 {[%emt 0:00:02]} 20. a5 {[%emt 0:00:10]} c5 {[%emt 0:00:10]} 21. h3 {[%emt 0:00:33]} Ngf6 {[%emt 0:00:05]} 22. Nf5 {[%emt 0:00:58]} Bxf5 {[%emt 0:00:14]} 23. exf5 {[%emt 0:00:02]} cxb4 {[%emt 0:00:01]} 24. Qb3 {[%emt 0:00:22]} bxc3 {[%emt 0:00:25]} 25. Bxc3 {[%emt 0:00:05]} Ne4 {[%emt 0:00:13]} 26. Bb2 {[%emt 0:00:16]} Nec5 {[%emt 0:00:15]} 27. Qc3 {[%emt 0:00:03]} Bf6 {[%emt 0:00:06]} 28. Rc1 {[%emt 0:00:03]} e4 {[%emt 0:00:06]} 29. Nd4 {[%emt 0:00:01]} Qd6 {[%emt 0:00:19]} 30. Ba3 {[%emt 0:00:02]} Qd5 {[%emt 0:00:02]} 31. Red1 {[%emt 0:00:01]} Nb7 {[%emt 0:00:03]} 32. Rd2 {[%emt 0:00:05]} Bxd4 {[%emt 0:00:02]} 33. Rxd4 {[%emt 0:00:02]} Qxf5 {[%emt 0:00:01]} 34. Bg4 {[%emt 0:00:02]} Qg6 {[%emt 0:00:02]} 35. Rxd7 {[%emt 0:00:02]} Rxd7 {[%emt 0:00:01]} 36. Bxd7 {[%emt 0:00:00]} Nd6 {[%emt 0:00:03]} 37. Bxd6 {[%emt 0:00:03]} Rd8 {[%emt 0:00:03]} 38. Qc7 {[%emt 0:00:03]} Rf8 {[%emt 0:00:04]} 39. Bxf8 {[%emt 0:00:01]} 1-0